[Event "Early-Titled-Tuesday-Blitz-October-24-2023"]
[Site "Chess.com"]
[Date "2023.10.24"]
[Round "8"]
[White "Keeper0416"]
[Black "ATM622"]
[Result "1-0"]
[WhiteElo "2584"]
[BlackElo "2422"]
[TimeControl "180+1"]
[EndTime "9:25:20 PDT"]
[Termination "Keeper0416 won on time"]

1. d4 {[%clk 0:03:00.9]} 1... g6 {[%clk 0:02:57.4]} 2. c4 {[%clk 0:02:58.1]}
2... Bg7 {[%clk 0:02:57.3]} 3. Nf3 {[%clk 0:02:58.5]} 3... Nf6 {[%clk
0:02:57.3]} 4. Nc3 {[%clk 0:02:58.5]} 4... c5 {[%clk 0:02:56.6]} 5. d5 {[%clk
0:02:58.2]} 5... O-O {[%clk 0:02:56.2]} 6. e4 {[%clk 0:02:58.6]} 6... d6 {[%clk
0:02:56.1]} 7. h3 {[%clk 0:02:58.2]} 7... Nbd7 {[%clk 0:02:52.9]} 8. Bd3 {[%clk
0:02:58.3]} 8... a6 {[%clk 0:02:48.5]} 9. a4 {[%clk 0:02:58]} 9... Ne5 {[%clk
0:02:47.4]} 10. Nxe5 {[%clk 0:02:56.2]} 10... dxe5 {[%clk 0:02:48.3]} 11. O-O
{[%clk 0:02:56.7]} 11... Nh5 {[%clk 0:02:47.8]} 12. Be3 {[%clk 0:02:56.3]} 12...
Nf4 {[%clk 0:02:45]} 13. Bxc5 {[%clk 0:02:53.8]} 13... f5 {[%clk 0:02:43.1]} 14.
Be3 {[%clk 0:02:51.2]} 14... e6 {[%clk 0:02:34.4]} 15. Bc2 {[%clk 0:02:45.5]}
15... Qh4 {[%clk 0:02:23.3]} 16. Qf3 {[%clk 0:02:37.5]} 16... Bd7 {[%clk
0:02:10.6]} 17. Kh2 {[%clk 0:02:08.1]} 17... g5 {[%clk 0:02:05.6]} 18. Qg3
{[%clk 0:01:51.5]} 18... Qh6 {[%clk 0:02:00.3]} 19. Rad1 {[%clk 0:01:44.4]}
19... g4 {[%clk 0:01:55.4]} 20. c5 {[%clk 0:01:30.4]} 20... Bf6 {[%clk
0:01:53.2]} 21. Bxf4 {[%clk 0:01:21.1]} 21... exf4 {[%clk 0:01:51.9]} 22. Qd3
{[%clk 0:01:21.8]} 22... f3 {[%clk 0:01:49.9]} 23. Rh1 {[%clk 0:01:08.5]} 23...
Be5+ {[%clk 0:01:04.6]} 24. Kg1 {[%clk 0:01:06.8]} 24... fxg2 {[%clk 0:01:03.2]}
25. Kxg2 {[%clk 0:01:04.6]} 25... f4 {[%clk 0:00:58.1]} 26. hxg4 {[%clk
0:01:03]} 26... f3+ {[%clk 0:00:58.3]} 27. Qxf3 {[%clk 0:00:55.7]} 27... Qg5
{[%clk 0:00:55.6]} 28. Qh3 {[%clk 0:00:43.6]} 28... Rf7 {[%clk 0:00:54.1]} 29.
Rd3 {[%clk 0:00:24.3]} 29... Raf8 {[%clk 0:00:48.8]} 30. f3 {[%clk 0:00:16.1]}
30... Kh8 {[%clk 0:00:02.6]} 31. Qh6 {[%clk 0:00:12.7]} 31... Qg8 {[%clk
0:00:02.7]} 32. dxe6 {[%clk 0:00:12.1]} 32... Bf4 {[%clk 0:00:02.1]} 33. exf7
{[%clk 0:00:10.9]} 33... Rxf7 {[%clk 0:00:01.5]} 34. Qh5 {[%clk 0:00:10.2]} 1-0

[Event "Early-Titled-Tuesday-Blitz-October-24-2023"]
[Site "Chess.com"]
[Date "2023.10.24"]
[Round "8"]
[White "howitzer14"]
[Black "Malikova777"]
[Result "1-0"]
[WhiteElo "2927"]
[BlackElo "2250"]
[TimeControl "180+1"]
[EndTime "9:25:23 PDT"]
[Termination "howitzer14 won by resignation"]

1. d4 {[%clk 0:02:56.5]} 1... Nf6 {[%clk 0:02:59.7]} 2. Bg5 {[%clk 0:02:54]}
2... c5 {[%clk 0:02:58.5]} 3. Nc3 {[%clk 0:02:51.1]} 3... e6 {[%clk 0:02:55.5]}
4. d5 {[%clk 0:02:48]} 4... d6 {[%clk 0:02:48.5]} 5. e4 {[%clk 0:02:47.2]} 5...
e5 {[%clk 0:02:47.9]} 6. Bb5+ {[%clk 0:02:46.3]} 6... Bd7 {[%clk 0:02:47.4]} 7.
a4 {[%clk 0:02:46.6]} 7... a6 {[%clk 0:02:47.5]} 8. Bd3 {[%clk 0:02:42.8]} 8...
Be7 {[%clk 0:02:46.4]} 9. Be3 {[%clk 0:02:27.5]} 9... O-O {[%clk 0:02:41.1]} 10.
h3 {[%clk 0:02:27.8]} 10... Ne8 {[%clk 0:02:40.5]} 11. Nf3 {[%clk 0:02:25.8]}
11... f5 {[%clk 0:02:40.3]} 12. exf5 {[%clk 0:02:24.6]} 12... Bxf5 {[%clk
0:02:41.2]} 13. Bxf5 {[%clk 0:02:20.2]} 13... Rxf5 {[%clk 0:02:42.1]} 14. Qd3
{[%clk 0:02:20.5]} 14... Rf8 {[%clk 0:02:37.5]} 15. Nd2 {[%clk 0:02:13.4]} 15...
Nd7 {[%clk 0:02:33.8]} 16. Nc4 {[%clk 0:02:06.3]} 16... Nef6 {[%clk 0:02:26.4]}
17. O-O {[%clk 0:02:03.8]} 17... Rb8 {[%clk 0:02:15.5]} 18. a5 {[%clk
0:02:00.6]} 18... Rf7 {[%clk 0:02:08.4]} 19. Bg5 {[%clk 0:01:48.2]} 19... h6
{[%clk 0:02:00]} 20. Bxf6 {[%clk 0:01:48]} 20... Nxf6 {[%clk 0:01:58.8]} 21.
Rae1 {[%clk 0:01:45.7]} 21... Bf8 {[%clk 0:01:57.9]} 22. Ne4 {[%clk 0:01:39.4]}
22... Nxe4 {[%clk 0:01:56.8]} 23. Rxe4 {[%clk 0:01:40.3]} 23... Qf6 {[%clk
0:01:47.8]} 24. Re3 {[%clk 0:01:34.3]} 24... Qf4 {[%clk 0:01:42.1]} 25. Rf3
{[%clk 0:01:22.5]} 25... Qd4 {[%clk 0:01:41.3]} 26. Rxf7 {[%clk 0:01:22.9]}
26... Kxf7 {[%clk 0:01:36.8]} 27. Rd1 {[%clk 0:01:20.7]} 27... Qxd3 {[%clk
0:01:13.1]} 28. Rxd3 {[%clk 0:01:21.6]} 28... Ke7 {[%clk 0:01:04.7]} 29. Kf1
{[%clk 0:00:52.9]} 29... Kd7 {[%clk 0:00:51.1]} 30. Rf3 {[%clk 0:00:51.9]} 30...
Ke7 {[%clk 0:00:50.8]} 31. Ke2 {[%clk 0:00:51.1]} 31... g6 {[%clk 0:00:50.2]}
32. Kd3 {[%clk 0:00:49.9]} 32... Bg7 {[%clk 0:00:50.1]} 33. Ke4 {[%clk
0:00:50.1]} 33... Bf6 {[%clk 0:00:48.2]} 34. Rg3 {[%clk 0:00:46.9]} 34... Rg8
{[%clk 0:00:42.6]} 35. Rb3 {[%clk 0:00:46.7]} 35... Rb8 {[%clk 0:00:41.6]} 36.
Rb6 {[%clk 0:00:47.1]} 36... Rd8 {[%clk 0:00:27.5]} 37. Rxb7+ {[%clk 0:00:46.5]}
37... Kf8 {[%clk 0:00:27.7]} 38. b3 {[%clk 0:00:43.7]} 38... Be7 {[%clk
0:00:26.5]} 39. Ra7 {[%clk 0:00:41.7]} 39... Rb8 {[%clk 0:00:23]} 40. Rxa6
{[%clk 0:00:41.7]} 40... Rb5 {[%clk 0:00:21.1]} 41. Rb6 {[%clk 0:00:40.4]} 41...
Rxb6 {[%clk 0:00:19.1]} 42. Nxb6 {[%clk 0:00:29.3]} 42... Bd8 {[%clk 0:00:18.7]}
43. Nc4 {[%clk 0:00:29.9]} 43... Bc7 {[%clk 0:00:18.1]} 44. a6 {[%clk
0:00:30.8]} 44... Bb8 {[%clk 0:00:17.8]} 45. Nxd6 {[%clk 0:00:31.5]} 45... Ke7
{[%clk 0:00:16.4]} 46. Nb5 {[%clk 0:00:29.7]} 46... Kf6 {[%clk 0:00:14.9]} 47.
c4 {[%clk 0:00:29.1]} 1-0

[Event "Early-Titled-Tuesday-Blitz-October-24-2023"]
[Site "Chess.com"]
[Date "2023.10.24"]
[Round "8"]
[White "dianamirza"]
[Black "AnaKuchava"]
[Result "0-1"]
[WhiteElo "2011"]
[BlackElo "2229"]
[TimeControl "180+1"]
[EndTime "9:25:25 PDT"]
[Termination "AnaKuchava won on time"]

1. d4 {[%clk 0:03:00.9]} 1... d5 {[%clk 0:02:46.6]} 2. Nf3 {[%clk 0:02:58.8]}
2... Nf6 {[%clk 0:02:41.5]} 3. b3 {[%clk 0:02:57.6]} 3... Bf5 {[%clk 0:02:39.4]}
4. Bb2 {[%clk 0:02:57.6]} 4... e6 {[%clk 0:02:37.9]} 5. Nbd2 {[%clk 0:02:57.8]}
5... c5 {[%clk 0:02:37.3]} 6. e3 {[%clk 0:02:55.9]} 6... Nc6 {[%clk 0:02:36.7]}
7. Nh4 {[%clk 0:02:52]} 7... Bg6 {[%clk 0:02:35.7]} 8. Nxg6 {[%clk 0:02:51]}
8... hxg6 {[%clk 0:02:36.6]} 9. Bd3 {[%clk 0:02:48.1]} 9... Bd6 {[%clk
0:02:35.5]} 10. f4 {[%clk 0:02:44.4]} 10... a6 {[%clk 0:02:31.5]} 11. a3 {[%clk
0:02:39.1]} 11... Rc8 {[%clk 0:02:27.1]} 12. O-O {[%clk 0:02:37.6]} 12... Ng4
{[%clk 0:02:25.8]} 13. dxc5 {[%clk 0:02:26.8]} 13... Nxe3 {[%clk 0:02:21.1]} 14.
Qf3 {[%clk 0:01:58.1]} 14... Bxc5 {[%clk 0:02:14.5]} 15. b4 {[%clk 0:01:31.3]}
15... Ba7 {[%clk 0:01:52.7]} 16. Rf2 {[%clk 0:01:18.9]} 16... Nf5 {[%clk
0:01:42.4]} 17. Bxf5 {[%clk 0:01:15.6]} 17... gxf5 {[%clk 0:01:43.3]} 18. c4
{[%clk 0:00:48.9]} 18... Bxf2+ {[%clk 0:01:41.8]} 19. Qxf2 {[%clk 0:00:42.3]}
19... Qh4 {[%clk 0:01:38.7]} 20. g3 {[%clk 0:00:39.6]} 20... Qd8 {[%clk
0:01:32.2]} 21. cxd5 {[%clk 0:00:34.6]} 21... Qxd5 {[%clk 0:01:33.1]} 22. Nf3
{[%clk 0:00:29.1]} 22... Qb3 {[%clk 0:01:22.8]} 23. Bxg7 {[%clk 0:00:27.9]}
23... Rg8 {[%clk 0:01:15]} 24. Bf6 {[%clk 0:00:26.6]} 24... Rg6 {[%clk
0:01:11.8]} 25. Bh4 {[%clk 0:00:20.7]} 25... Kf8 {[%clk 0:01:02.5]} 26. Re1
{[%clk 0:00:16.5]} 26... Qxa3 {[%clk 0:00:55.3]} 27. Qc5+ {[%clk 0:00:16.5]}
27... Kg8 {[%clk 0:00:54.3]} 28. Ne5 {[%clk 0:00:15.9]} 28... Rh6 {[%clk
0:00:31.2]} 29. Nd7 {[%clk 0:00:15.7]} 29... Qxb4 {[%clk 0:00:28.1]} 30. Qc1
{[%clk 0:00:09]} 30... Qd4+ {[%clk 0:00:26.5]} 31. Kg2 {[%clk 0:00:07.7]} 31...
Qxd7 {[%clk 0:00:26.2]} 32. Rd1 {[%clk 0:00:06.7]} 32... Nd4 {[%clk 0:00:23.9]}
33. Rxd4 {[%clk 0:00:03.6]} 33... Rxc1 {[%clk 0:00:18.2]} 34. Rxd7 {[%clk
0:00:03.6]} 34... b6 {[%clk 0:00:12.3]} 35. Bg5 {[%clk 0:00:03.1]} 35... Rg6
{[%clk 0:00:11.3]} 36. h4 {[%clk 0:00:02.8]} 36... f6 {[%clk 0:00:09.3]} 37. h5
{[%clk 0:00:01.5]} 37... fxg5 {[%clk 0:00:09.7]} 38. hxg6 {[%clk 0:00:01.5]}
38... gxf4 {[%clk 0:00:10.4]} 0-1

[Event "Early-Titled-Tuesday-Blitz-October-24-2023"]
[Site "Chess.com"]
[Date "2023.10.24"]
[Round "8"]
[White "lamomiajunior"]
[Black "K_A_S_T_O_R"]
[Result "0-1"]
[WhiteElo "2666"]
[BlackElo "2872"]
[TimeControl "180+1"]
[EndTime "9:25:26 PDT"]
[Termination "K_A_S_T_O_R won by resignation"]

1. d4 {[%clk 0:03:00.9]} 1... Nf6 {[%clk 0:02:59.7]} 2. c4 {[%clk 0:03:01.5]}
2... e6 {[%clk 0:03:00]} 3. Nc3 {[%clk 0:03:02.1]} 3... Bb4 {[%clk 0:02:59.8]}
4. f3 {[%clk 0:03:01.6]} 4... d5 {[%clk 0:02:58.1]} 5. a3 {[%clk 0:03:01.7]}
5... Bxc3+ {[%clk 0:02:57.9]} 6. bxc3 {[%clk 0:03:02.3]} 6... c6 {[%clk
0:02:46.6]} 7. cxd5 {[%clk 0:02:59.5]} 7... cxd5 {[%clk 0:02:43.9]} 8. e3 {[%clk
0:02:58.9]} 8... O-O {[%clk 0:02:41.6]} 9. Bd3 {[%clk 0:02:59.5]} 9... b6 {[%clk
0:02:37.6]} 10. Ne2 {[%clk 0:02:59.7]} 10... Ba6 {[%clk 0:02:37.2]} 11. O-O
{[%clk 0:02:59.5]} 11... Qc7 {[%clk 0:02:30.6]} 12. Bb2 {[%clk 0:02:58.1]} 12...
Rc8 {[%clk 0:02:16.3]} 13. e4 {[%clk 0:02:52.4]} 13... Bxd3 {[%clk 0:02:09.1]}
14. Qxd3 {[%clk 0:02:51.5]} 14... Qc4 {[%clk 0:02:09.3]} 15. Qe3 {[%clk
0:02:50.2]} 15... Nc6 {[%clk 0:02:08.7]} 16. Ng3 {[%clk 0:02:33.6]} 16... Qb3
{[%clk 0:01:56.1]} 17. e5 {[%clk 0:02:20.4]} 17... Ne8 {[%clk 0:01:34.7]} 18.
Rab1 {[%clk 0:02:14.2]} 18... Ne7 {[%clk 0:01:29.6]} 19. Qg5 {[%clk 0:02:11.4]}
19... Rc7 {[%clk 0:01:23.4]} 20. h4 {[%clk 0:02:11.1]} 20... h6 {[%clk
0:01:22.7]} 21. Qg4 {[%clk 0:02:11.3]} 21... Qc2 {[%clk 0:01:17.7]} 22. Ba1
{[%clk 0:02:02.6]} 22... Qg6 {[%clk 0:01:17.2]} 23. Qf4 {[%clk 0:01:58.9]} 23...
Nf5 {[%clk 0:01:15.3]} 24. Ne2 {[%clk 0:01:56.9]} 24... h5 {[%clk 0:01:14.2]}
25. Rbe1 {[%clk 0:01:49.6]} 25... Qh6 {[%clk 0:01:12.8]} 26. Qh2 {[%clk
0:01:40.4]} 26... Rac8 {[%clk 0:01:06.4]} 27. Bb2 {[%clk 0:01:35.6]} 27... Qe3+
{[%clk 0:00:47.8]} 28. Kh1 {[%clk 0:01:32.9]} 28... Qh6 {[%clk 0:00:44.8]} 29.
Bc1 {[%clk 0:01:32.2]} 29... Qh7 {[%clk 0:00:45]} 30. Bg5 {[%clk 0:01:25.3]}
30... Ne7 {[%clk 0:00:41.8]} 31. Rc1 {[%clk 0:01:19.7]} 31... Nc6 {[%clk
0:00:40.9]} 32. f4 {[%clk 0:00:51.3]} 32... Qd3 {[%clk 0:00:31.1]} 33. Ng3
{[%clk 0:00:48.7]} 33... g6 {[%clk 0:00:31.1]} 34. f5 {[%clk 0:00:45.7]} 34...
exf5 {[%clk 0:00:29.9]} 35. Rf3 {[%clk 0:00:40.3]} 35... Qc4 {[%clk 0:00:26.1]}
36. Rcf1 {[%clk 0:00:37.8]} 36... Ng7 {[%clk 0:00:20.8]} 37. Bf6 {[%clk
0:00:36.1]} 37... Nd8 {[%clk 0:00:20.7]} 38. Ne2 {[%clk 0:00:14.5]} 38... Nde6
{[%clk 0:00:20.3]} 39. Qg3 {[%clk 0:00:14.5]} 39... Qxe2 {[%clk 0:00:20.1]} 40.
Rxf5 {[%clk 0:00:14]} 40... Nxf5 {[%clk 0:00:18]} 41. Rxf5 {[%clk 0:00:14.1]}
41... Rxc3 {[%clk 0:00:15.6]} 42. Rxh5 {[%clk 0:00:14]} 42... Qxh5 {[%clk
0:00:14.4]} 0-1

[Event "Early-Titled-Tuesday-Blitz-October-24-2023"]
[Site "Chess.com"]
[Date "2023.10.24"]
[Round "8"]
[White "Kostukov_Alex"]
[Black "Mariia89"]
[Result "0-1"]
[WhiteElo "2405"]
[BlackElo "2170"]
[TimeControl "180+1"]
[EndTime "9:25:32 PDT"]
[Termination "Mariia89 won on time"]

1. g3 {[%clk 0:02:59.3]} 1... c5 {[%clk 0:02:59.4]} 2. Bg2 {[%clk 0:02:57.8]}
2... Nc6 {[%clk 0:02:59.6]} 3. c4 {[%clk 0:02:58.5]} 3... g6 {[%clk 0:02:59.6]}
4. Nf3 {[%clk 0:02:59.4]} 4... Bg7 {[%clk 0:03:00.3]} 5. O-O {[%clk 0:03:00]}
5... Nf6 {[%clk 0:03:01]} 6. d4 {[%clk 0:03:00.1]} 6... cxd4 {[%clk 0:03:00.9]}
7. Nxd4 {[%clk 0:03:00.2]} 7... O-O {[%clk 0:03:01.2]} 8. c5 {[%clk 0:03:00.5]}
8... Nxd4 {[%clk 0:02:37.9]} 9. Qxd4 {[%clk 0:02:59.6]} 9... Ne8 {[%clk
0:02:37.5]} 10. Qb4 {[%clk 0:02:47.8]} 10... d6 {[%clk 0:02:37.5]} 11. cxd6
{[%clk 0:02:34.4]} 11... Nxd6 {[%clk 0:02:30.2]} 12. Nc3 {[%clk 0:02:32]} 12...
Be6 {[%clk 0:02:23.7]} 13. Rd1 {[%clk 0:02:30.2]} 13... Qc8 {[%clk 0:02:18.1]}
14. Nd5 {[%clk 0:02:19.5]} 14... Bxd5 {[%clk 0:02:13.4]} 15. Rxd5 {[%clk
0:02:17.7]} 15... Qc2 {[%clk 0:01:45.4]} 16. Rd2 {[%clk 0:01:17.7]} 16... Qc7
{[%clk 0:01:07.4]} 17. Rd1 {[%clk 0:01:05.9]} 17... Rfd8 {[%clk 0:00:54.7]} 18.
Bf4 {[%clk 0:01:05.5]} 18... e5 {[%clk 0:00:54.9]} 19. Rac1 {[%clk 0:01:03.9]}
19... Qe7 {[%clk 0:00:48.3]} 20. Be3 {[%clk 0:00:57.5]} 20... Qe6 {[%clk
0:00:47.5]} 21. Bd5 {[%clk 0:00:53.7]} 21... Qf5 {[%clk 0:00:44.2]} 22. Rc7
{[%clk 0:00:42.2]} 22... Rac8 {[%clk 0:00:24.4]} 23. Rdc1 {[%clk 0:00:23.4]}
23... Rxc7 {[%clk 0:00:24.1]} 24. Rxc7 {[%clk 0:00:23.4]} 24... Bf8 {[%clk
0:00:24.1]} 25. Bxa7 {[%clk 0:00:10.9]} 25... b5 {[%clk 0:00:17]} 26. Bc5 {[%clk
0:00:08]} 26... Rd7 {[%clk 0:00:15.7]} 27. Rxd7 {[%clk 0:00:05]} 27... Qxd7
{[%clk 0:00:14.8]} 28. e4 {[%clk 0:00:04.5]} 28... h5 {[%clk 0:00:08.5]} 29. Kg2
{[%clk 0:00:04]} 29... h4 {[%clk 0:00:08]} 30. b3 {[%clk 0:00:03]} 30... h3+
{[%clk 0:00:08.1]} 31. Kf3 {[%clk 0:00:02.4]} 31... g5 {[%clk 0:00:03.5]} 32.
Ke2 {[%clk 0:00:02]} 32... Qg4+ {[%clk 0:00:03.2]} 33. f3 {[%clk 0:00:02.4]}
33... Qd7 {[%clk 0:00:03.4]} 0-1

[Event "Early-Titled-Tuesday-Blitz-October-24-2023"]
[Site "Chess.com"]
[Date "2023.10.24"]
[Round "8"]
[White "Yeremyan_ChessMate"]
[Black "Mikhail_Golubev"]
[Result "0-1"]
[WhiteElo "2772"]
[BlackElo "2562"]
[TimeControl "180+1"]
[EndTime "9:25:33 PDT"]
[Termination "Mikhail_Golubev won on time"]

1. e4 {[%clk 0:02:56.7]} 1... c5 {[%clk 0:02:59.8]} 2. Nc3 {[%clk 0:02:50.5]}
2... d6 {[%clk 0:02:58.5]} 3. g3 {[%clk 0:02:50.1]} 3... Nc6 {[%clk 0:02:57.5]}
4. Bg2 {[%clk 0:02:50.8]} 4... g6 {[%clk 0:02:57.5]} 5. f4 {[%clk 0:02:51.3]}
5... Bg7 {[%clk 0:02:57]} 6. Nf3 {[%clk 0:02:52.1]} 6... e6 {[%clk 0:02:57.1]}
7. O-O {[%clk 0:02:52.8]} 7... Nge7 {[%clk 0:02:55.6]} 8. d3 {[%clk 0:02:53.5]}
8... O-O {[%clk 0:02:50.2]} 9. Be3 {[%clk 0:02:54.1]} 9... b6 {[%clk 0:02:49.5]}
10. d4 {[%clk 0:02:50.4]} 10... Ba6 {[%clk 0:02:43.1]} 11. Re1 {[%clk
0:02:50.1]} 11... cxd4 {[%clk 0:02:33.1]} 12. Nxd4 {[%clk 0:02:50.7]} 12... Na5
{[%clk 0:02:32.3]} 13. Bf2 {[%clk 0:02:47.9]} 13... Rc8 {[%clk 0:02:29.2]} 14.
Ndb5 {[%clk 0:02:44]} 14... Nc4 {[%clk 0:02:11.6]} 15. Rb1 {[%clk 0:01:40.2]}
15... Nxb2 {[%clk 0:01:50.5]} 16. Rxb2 {[%clk 0:01:38.8]} 16... Bxb5 {[%clk
0:01:50.1]} 17. Nxb5 {[%clk 0:01:35.2]} 17... Bxb2 {[%clk 0:01:48.7]} 18. Nxd6
{[%clk 0:01:35.9]} 18... Rc7 {[%clk 0:01:04.8]} 19. Re3 {[%clk 0:01:02]} 19...
Nd5 {[%clk 0:00:45.9]} 20. Rb3 {[%clk 0:00:54.7]} 20... Qxd6 {[%clk 0:00:17.6]}
21. Rxb2 {[%clk 0:00:32.5]} 21... Qa3 {[%clk 0:00:17.5]} 22. Rb3 {[%clk
0:00:32.6]} 22... Nc3 {[%clk 0:00:17.9]} 23. Qd2 {[%clk 0:00:15.9]} 23... Qxa2
{[%clk 0:00:14.8]} 24. h4 {[%clk 0:00:08.3]} 24... Qa1+ {[%clk 0:00:12.7]} 25.
Kh2 {[%clk 0:00:08.9]} 25... Qd1 {[%clk 0:00:12]} 26. Qe3 {[%clk 0:00:07.8]}
26... Qxc2 {[%clk 0:00:11.5]} 27. Rb4 {[%clk 0:00:06.8]} 27... Nd1 {[%clk
0:00:11]} 28. Qd4 {[%clk 0:00:05.2]} 28... Nxf2 {[%clk 0:00:09]} 29. Qd6 {[%clk
0:00:05.1]} 29... Ng4+ {[%clk 0:00:08.3]} 30. Kh3 {[%clk 0:00:05.7]} 30... Nf2+
{[%clk 0:00:07.7]} 31. Kh2 {[%clk 0:00:05.9]} 31... Qc5 {[%clk 0:00:07.7]} 32.
Qd2 {[%clk 0:00:05.5]} 32... Ng4+ {[%clk 0:00:07.4]} 33. Kh3 {[%clk 0:00:05.1]}
33... h5 {[%clk 0:00:07]} 34. Rb1 {[%clk 0:00:05.3]} 34... Qc2 {[%clk
0:00:06.4]} 35. Qe1 {[%clk 0:00:06.1]} 35... Nf2+ {[%clk 0:00:05.4]} 36. Kh2
{[%clk 0:00:06.1]} 36... Ng4+ {[%clk 0:00:05.5]} 37. Kh3 {[%clk 0:00:06.8]}
37... Qf2 {[%clk 0:00:05.2]} 38. Qb4 {[%clk 0:00:04.4]} 38... Rc2 {[%clk
0:00:04.7]} 0-1

[Event "Early-Titled-Tuesday-Blitz-October-24-2023"]
[Site "Chess.com"]
[Date "2023.10.24"]
[Round "8"]
[White "Semetey"]
[Black "djokovic74"]
[Result "0-1"]
[WhiteElo "2536"]
[BlackElo "2697"]
[TimeControl "180+1"]
[EndTime "9:25:34 PDT"]
[Termination "djokovic74 won on time"]

1. a3 {[%clk 0:02:50.7]} 1... d5 {[%clk 0:02:59.1]} 2. d4 {[%clk 0:02:48]} 2...
Nf6 {[%clk 0:02:59.3]} 3. Nc3 {[%clk 0:02:46.9]} 3... e6 {[%clk 0:02:59]} 4. Bf4
{[%clk 0:02:46.9]} 4... Bd6 {[%clk 0:02:59.2]} 5. e3 {[%clk 0:02:46.7]} 5... O-O
{[%clk 0:02:59.9]} 6. Nf3 {[%clk 0:02:45.7]} 6... c5 {[%clk 0:02:59.5]} 7. dxc5
{[%clk 0:02:44.8]} 7... Bxf4 {[%clk 0:02:58.6]} 8. exf4 {[%clk 0:02:44.4]} 8...
Qc7 {[%clk 0:02:59.4]} 9. Qd4 {[%clk 0:02:41.7]} 9... Nc6 {[%clk 0:02:59.6]} 10.
Qd2 {[%clk 0:02:41.4]} 10... Ne7 {[%clk 0:02:47.2]} 11. b4 {[%clk 0:02:39.8]}
11... Ng6 {[%clk 0:02:44]} 12. g3 {[%clk 0:02:39.4]} 12... b6 {[%clk 0:02:44.4]}
13. cxb6 {[%clk 0:02:38.7]} 13... axb6 {[%clk 0:02:44.7]} 14. Bd3 {[%clk
0:02:37]} 14... Bb7 {[%clk 0:02:44.2]} 15. O-O {[%clk 0:02:33.2]} 15... Rfd8
{[%clk 0:02:28.5]} 16. Nd4 {[%clk 0:02:25.8]} 16... Ne4 {[%clk 0:02:28.8]} 17.
Nxe4 {[%clk 0:02:11.9]} 17... dxe4 {[%clk 0:02:29.2]} 18. Be2 {[%clk 0:02:11.1]}
18... e5 {[%clk 0:02:27.3]} 19. fxe5 {[%clk 0:02:10.6]} 19... Nxe5 {[%clk
0:02:27.3]} 20. c3 {[%clk 0:02:06.9]} 20... Qc8 {[%clk 0:02:16.8]} 21. Qe3
{[%clk 0:02:03.1]} 21... Qh3 {[%clk 0:02:12.8]} 22. Rfd1 {[%clk 0:02:00.7]}
22... h5 {[%clk 0:01:58.7]} 23. Bf1 {[%clk 0:01:51.8]} 23... Qg4 {[%clk
0:01:59]} 24. h3 {[%clk 0:01:48]} 24... Qg6 {[%clk 0:01:57.2]} 25. Bg2 {[%clk
0:01:46.6]} 25... Nc4 {[%clk 0:01:56.6]} 26. Qe2 {[%clk 0:01:45.1]} 26... Nxa3
{[%clk 0:01:44.3]} 27. h4 {[%clk 0:01:03.7]} 27... Rdc8 {[%clk 0:01:39.2]} 28.
Rdc1 {[%clk 0:00:55.2]} 28... Nc4 {[%clk 0:01:38.8]} 29. Rxa8 {[%clk 0:00:53.8]}
29... Bxa8 {[%clk 0:01:39]} 30. Kh2 {[%clk 0:00:47]} 30... Ne5 {[%clk
0:01:31.5]} 31. Ra1 {[%clk 0:00:43.2]} 31... Bd5 {[%clk 0:01:23.7]} 32. Qd2
{[%clk 0:00:34.1]} 32... Qf6 {[%clk 0:00:48.9]} 33. Kg1 {[%clk 0:00:22.7]} 33...
g6 {[%clk 0:00:38.4]} 34. Ra6 {[%clk 0:00:19.4]} 34... Rd8 {[%clk 0:00:30]} 35.
Qe2 {[%clk 0:00:11.7]} 35... Bc4 {[%clk 0:00:24.3]} 36. Rxb6 {[%clk 0:00:04.2]}
36... Qxb6 {[%clk 0:00:22.2]} 37. Qxe4 {[%clk 0:00:04.8]} 37... Qd6 {[%clk
0:00:18.3]} 38. Qf4 {[%clk 0:00:03.2]} 38... Bd5 {[%clk 0:00:18.1]} 39. Bxd5
{[%clk 0:00:01]} 39... Qxd5 {[%clk 0:00:18.2]} 0-1

[Event "Early-Titled-Tuesday-Blitz-October-24-2023"]
[Site "Chess.com"]
[Date "2023.10.24"]
[Round "8"]
[White "hansen"]
[Black "GianmarcoVaR"]
[Result "1-0"]
[WhiteElo "2939"]
[BlackElo "2735"]
[TimeControl "180+1"]
[EndTime "9:25:35 PDT"]
[Termination "hansen won on time"]

1. d4 {[%clk 0:02:57.3]} 1... Nf6 {[%clk 0:02:59.5]} 2. Bf4 {[%clk 0:02:54.2]}
2... d5 {[%clk 0:02:56.5]} 3. e3 {[%clk 0:02:53.9]} 3... e6 {[%clk 0:02:55.2]}
4. Nd2 {[%clk 0:02:53.7]} 4... Bd6 {[%clk 0:02:55.5]} 5. Bg3 {[%clk 0:02:53.6]}
5... O-O {[%clk 0:02:52.4]} 6. Bd3 {[%clk 0:02:53.2]} 6... b6 {[%clk 0:02:46.8]}
7. Qe2 {[%clk 0:02:51.5]} 7... Bb7 {[%clk 0:02:46]} 8. Ngf3 {[%clk 0:02:49.7]}
8... Nbd7 {[%clk 0:02:43.8]} 9. Ne5 {[%clk 0:02:48.7]} 9... Ne4 {[%clk
0:02:31.7]} 10. a4 {[%clk 0:02:03.7]} 10... Nxe5 {[%clk 0:01:49.1]} 11. dxe5
{[%clk 0:02:01.5]} 11... Be7 {[%clk 0:01:44.7]} 12. Qg4 {[%clk 0:01:35.4]} 12...
Nc5 {[%clk 0:01:33.3]} 13. Be2 {[%clk 0:01:30.7]} 13... a5 {[%clk 0:01:28]} 14.
O-O {[%clk 0:01:28.8]} 14... Qd7 {[%clk 0:01:25.7]} 15. b3 {[%clk 0:01:25.4]}
15... Ba6 {[%clk 0:01:23.1]} 16. Rfd1 {[%clk 0:01:21.2]} 16... Bxe2 {[%clk
0:01:08.4]} 17. Qxe2 {[%clk 0:01:21.3]} 17... Qc8 {[%clk 0:01:09]} 18. Qg4
{[%clk 0:00:55.9]} 18... Rd8 {[%clk 0:01:01.8]} 19. h4 {[%clk 0:00:53]} 19...
Rd7 {[%clk 0:00:40.3]} 20. h5 {[%clk 0:00:51.9]} 20... Qf8 {[%clk 0:00:40]} 21.
h6 {[%clk 0:00:47.7]} 21... g6 {[%clk 0:00:38.8]} 22. Bf4 {[%clk 0:00:47.7]}
22... Rad8 {[%clk 0:00:38.8]} 23. Bg5 {[%clk 0:00:31.8]} 23... d4 {[%clk
0:00:30.7]} 24. Bxe7 {[%clk 0:00:23.9]} 24... Qxe7 {[%clk 0:00:30]} 25. e4
{[%clk 0:00:17.8]} 25... Na6 {[%clk 0:00:22.4]} 26. Nf3 {[%clk 0:00:16.4]} 26...
Nc5 {[%clk 0:00:17]} 27. Rab1 {[%clk 0:00:14.4]} 27... d3 {[%clk 0:00:15.6]} 28.
c3 {[%clk 0:00:12.1]} 28... d2 {[%clk 0:00:13.3]} 29. Rb2 {[%clk 0:00:10.4]}
29... Qf8 {[%clk 0:00:11.3]} 30. Qh4 {[%clk 0:00:08.8]} 30... Qe7 {[%clk
0:00:02.4]} 31. Qxe7 {[%clk 0:00:08.4]} 31... Rxe7 {[%clk 0:00:02.7]} 32. Rbxd2
{[%clk 0:00:09.1]} 32... Rde8 {[%clk 0:00:02.9]} 33. Rb2 {[%clk 0:00:05.1]}
33... Nxe4 {[%clk 0:00:02.9]} 34. Rc2 {[%clk 0:00:03.7]} 34... Nc5 {[%clk
0:00:03.1]} 35. b4 {[%clk 0:00:03.7]} 35... Nxa4 {[%clk 0:00:02.5]} 36. Ra1
{[%clk 0:00:03.4]} 36... b5 {[%clk 0:00:02.1]} 37. bxa5 {[%clk 0:00:03.9]} 37...
c5 {[%clk 0:00:01.2]} 38. c4 {[%clk 0:00:04]} 38... Rb7 {[%clk 0:00:01.3]} 39.
cxb5 {[%clk 0:00:03.9]} 39... Rxb5 {[%clk 0:00:01.2]} 40. Rxa4 {[%clk
0:00:04.4]} 40... Rb1+ {[%clk 0:00:01.1]} 41. Kh2 {[%clk 0:00:04.7]} 1-0